[Event "Leiden Chess Tournament"]
[Site "Leiden"]
[Date "2017.07.14"]
[Round "1"]
[White "Kastelein, Gerard"]
[Black "Koelmans, Jan Willem"]
[Result "0-1"]
[ECO "A00"]
[WhiteElo "1742"]
[BlackElo "1916"]
[Annotator "NA RC"]
[PlyCount "78"]
[EventDate "2017.??.??"]
[EventCountry "NED"]
[SourceTitle "playchess.com"]
[Source "ChessBase"]
[SourceQuality "1"]
[TimeControl "40/5400+30:1800+30"]

{[%evp 8,78,25,-16,33,-10,0,-13,-27,-4,0,0,-5,32767,32767,32767,32767,-19,32767,-25,-5,32767,32767,-118,-78,-115,32767,32767,32767,-100,-35,-43,-32,-85,-50,-50,-8,-19,-12,-13,12,10,30,-91,-92,-85,-75,-95,-75,-87,-10,-25,47,-209,-218,-131,-254,-606,-663,-597,-650,-586,-646,-720,32767,32767,32767,32767,-806,-795,-844,-915,-835]} 1. Nc3 {[%emt 0:00:00]} c5 {[%emt 0:00:18]} 2. Nf3 {[%emt 0:00:00]} Nc6 {[%emt 0:00:52]} 3. d4 {[%emt 0:00:00]} cxd4 {[%emt 0:01:12]} 4. Nxd4 {[%emt 0:00:03]} Nf6 {[%emt 0:00:25]} 5. Bg5 {[%emt 0:01:05] LiveBook: 43 Games} d6 {[%emt 0:01:58]} 6. Nxc6 {[%emt 0:04:19]} (6. Bxf6 $5 gxf6 7. e3 $11) 6... bxc6 {[%emt 0:00:05]} 7. g3 {[%emt 0:00:31]} Rb8 {[%emt 0:02:24]} 8. Bg2 {[%emt 0:02:18]} Bd7 {[%emt 0:00:54]} 9. Rb1 {[%emt 0:01:58]} Qa5 {[%emt 0:03:50]} 10. Qd2 {[%emt 0:01:52]} h6 {[%emt 0:02:09]} 11. Be3 {[%emt 0:05:14]} e6 {[%emt 0:11:29]} 12. O-O {[%emt 0:02:49]} Be7 {[%emt 0:03:06]} 13. b4 {[%emt 0:02:36]} (13. Nd5 $5 Qxd2 14. Nxf6+ Bxf6 15. Bxd2 $11) 13... Qc7 {[%emt 0:00:45]} 14. a4 {[%emt 0:06:21]} O-O {[%emt 0:03:59]} 15. Rfd1 {[%emt 0:03:35]} (15. Ra1) ({White should try} 15. Ne4 $15) 15... d5 {[%emt 0:06:14]} 16. Qd4 {[%emt 0:06:30]} e5 {[%emt 0:11:30]} 17. Qxa7 {[%emt 0:03:49]} Rb7 {[%emt 0:00:11] Qa} 18. Qa6 {[%emt 0:10:23]} Rxb4 {[%emt 0:09:11]} (18... Rfb8 $17 19. Bc5 Bxc5 20. bxc5 Rb2) 19. Rxb4 {[%emt 0:02:12]} Bxb4 {[%emt 0:00:06]} 20. Na2 {[%emt 0:02:38]} (20. Bb6 $11 Qb8 21. Na2) 20... Ba5 {[%emt 0:06:24]} 21. Rb1 {[%emt 0:02:09]} Bc8 {[%emt 0:00:09]} 22. Qa7 {[%emt 0:03:24]} Qxa7 {[%emt 0:01:51]} 23. Bxa7 {[%emt 0:00:13]} Ba6 {[%emt 0:00:04]} 24. e3 {[%emt 0:04:12]} Ra8 {[%emt 0:06:28]} 25. Bb8 {[%emt 0:05:02]} (25. Rb8+ $11 {remains equal.} Rxb8 26. Bxb8) 25... Bc4 {[%emt 0:00:49]} 26. Nc1 {[%emt 0:00:57]} Bc3 {[%emt 0:01:11]} 27. Nd3 {[%emt 0:03:49]} Nd7 {[%emt 0:00:56]} 28. Bd6 {[%emt 0:01:09]} Rxa4 {[%emt 0:01:49]} 29. Bh3 {[%emt 0:00:52]} e4 {[%emt 0:04:17]} (29... Ra7 $11 30. Bxd7 Rxd7 31. Rb8+ Kh7 32. Bxe5 Bxd3 33. Bxc3 Bxc2) 30. Nf4 $2 {[%emt 0:04:24]} (30. Bxd7 $14 {is the one way to stay ahead.} exd3 31. Bf5) 30... Ne5 {[%emt 0:00:30]} 31. Rb8+ {[%emt 0:01:48]} Kh7 {[%emt 0:00:39]} 32. Bf5+ $2 {[%emt 0:03:30]} (32. Rb1) 32... g6 {[%emt 0:00:51]} 33. Bxg6+ {[%emt 0:00:55]} Nxg6 {[%emt 0:00:17]} 34. h4 {[%emt 0:00:42]} Nxf4 {[%emt 0:01:40] Bxf} 35. Bxf4 {[%emt 0:01:15]} Be2 {[%emt 0:01:09]} 36. g4 {[%emt 0:02:10]} Bxg4 {[%emt 0:00:33]} 37. Kg2 {[%emt 0:00:27]} Be6 {[%emt 0:01:54]} 38. Kg3 {[%emt 0:01:07]} Rc4 {[%emt 0:00:49]} 39. Bd6 {[%emt 0:01:46]} Bg7 $19 {[%emt 0:00:29]} 0-1

[Event "Leiden Chess Tournament"]
[Site "Leiden"]
[Date "2017.07.15"]
[Round "2"]
[White "Koelmans, Jan-Willem"]
[Black "Van de Griend, Johan"]
[Result "1-0"]
[ECO "D11"]
[WhiteElo "1916"]
[BlackElo "1797"]
[Annotator "NA RC"]
[PlyCount "89"]
[EventDate "2017.??.??"]
[EventCountry "NED"]
[SourceTitle "playchess.com"]
[Source "ChessBase"]
[SourceQuality "1"]
[TimeControl "40/5400+30:1800+30"]

{[%evp 13,89,26,39,20,31,9,49,26,32767,32767,32767,32767,32767,32767,28,36,33,32,38,39,35,2,45,26,59,78,64,32767,32767,32767,32767,32767,32767,32767,32767,25,89,32767,32767,32767,29,28,32767,32,79,46,35,33,32767,32767,32767,32767,32767,0,0,0,245,272,285,199,223,32767,32767,32767,32767,32767,32767,32767,32767,32767,32767,32767,32767,32767,29989,32767,29991,29989]} 1. d4 d5 2. c4 dxc4 3. Nf3 c6 4. e3 Be6 5. Nc3 b5 {D11: Slav Defence: 3 Nf3 sidelines and 3...Nf6 4 e3 Bg4} 6. a4 b4 7. Ne4 Bd5 8. Ng3 Nf6 9. Qc2 {LiveBook: 4 Games} Bxf3 (9... b3 $5 {[%cal Rb3c2]} 10. Qc3 h5 $11) 10. gxf3 e6 11. Bxc4 $146 ({Predecessor:} 11. Qxc4 Qd5 12. e4 Qxc4 13. Bxc4 {½-½ (48) Kharitonov,A (2552)-Hasangatin,R (2508) Cappelle-la-Grande 2011}) 11... Be7 12. a5 a6 13. Bd2 O-O 14. O-O Nbd7 15. Rfd1 c5 16. dxc5 Bxc5 17. Qb3 Qe7 18. Rac1 Ne5 {[#]} 19. Be2 $1 Rfd8 20. Be1 Rxd1 21. Rxd1 Rd8 22. f4 Rxd1 23. Qxd1 Nc6 24. Qa4 Nb8 (24... Qb7 $11) 25. Bf3 g6 26. Ne4 Nxe4 27. Bxe4 Kg7 28. Qc2 f5 29. Bf3 e5 30. fxe5 Qxe5 31. Qc4 Qd6 32. Bd5 Nd7 33. Bb7 Qd1 34. Kf1 Qd6 $2 (34... Ne5 $1 $11 {and Black stays safe.} 35. Qxc5 Qxe1+ 36. Kxe1 Nd3+ 37. Ke2 Nxc5) 35. Qxa6 ({Less strong is} 35. Bxa6 Ne5 $14) 35... Qxh2 36. Qe6 Qc7 37. Bd5 Nf6 38. Bc4 Ng4 39. a6 Qa7 40. Bd2 Nf6 41. b3 Ne4 42. Bc1 Nd6 43. Qg8+ Kh6 44. Qf8+ Kg5 45. e4+ 1-0

[Event "Leiden Chess Tournament"]
[Site "Leiden"]
[Date "2017.07.15"]
[Round "2"]
[White "Van t Hoff, Kees"]
[Black "Hilarius, Sander"]
[Result "1/2-1/2"]
[ECO "D18"]
[WhiteElo "1798"]
[BlackElo "1941"]
[Annotator "NA RC"]
[PlyCount "54"]
[EventDate "2017.??.??"]
[EventCountry "NED"]
[SourceTitle "playchess.com"]
[Source "ChessBase"]
[SourceQuality "1"]
[TimeControl "40/5400+30:1800+30"]

{[%evp 19,52,-23,-24,-6,0,32767,32767,32767,32767,0,0,0,0,0,-6,0,0,0,0,0,9,0,0,0,31,32767,32767,32767,32767,32767,32767,32767,32767,32767,16]} 1. d4 d5 2. c4 c6 3. Nf3 Nf6 4. Nc3 dxc4 5. a4 Bf5 6. e3 e6 7. Bxc4 Bb4 8. O-O Nbd7 9. h3 O-O 10. Bd3 Bxd3 11. Qxd3 Qa5 $146 {D18: Slav Defence: 5 a4 Bf5 6 e3} ({Predecessor:} 11... Qe7 12. b3 e5 13. dxe5 Nxe5 14. Nxe5 Qxe5 15. Bb2 Bd6 16. f4 Qe6 17. Ne2 Rad8 18. Nd4 Qd5 19. Qc4 {0-1 (50) Chmel,K (2068)-Mohammad,N (2275) Prague 2015}) 12. Na2 Bd6 13. Bd2 Qc7 14. Bc3 Rad8 15. Qc2 e5 16. dxe5 Nxe5 17. Nxe5 Bxe5 18. Rad1 Nd5 19. Bxe5 Qxe5 20. Rd3 Rd6 21. Rfd1 Rg6 $14 22. Rd4 Qe6 23. Kh2 Qe5+ 24. Kh1 Qg5 25. Rg4 Qe7 26. Rgd4 Qg5 27. Rg4 Qe7 1/2-1/2

[Event "Leiden Chess Tournament"]
[Site "Leiden"]
[Date "2017.07.16"]
[Round "3"]
[White "Van Brussel, Bert"]
[Black "Koelmans, Jan-Willem"]
[Result "1/2-1/2"]
[ECO "B47"]
[WhiteElo "1828"]
[BlackElo "1916"]
[Annotator "NA RC"]
[PlyCount "93"]
[EventDate "2017.??.??"]
[EventCountry "NED"]
[SourceTitle "playchess.com"]
[Source "ChessBase"]
[SourceQuality "1"]
[TimeControl "40/5400+30:1800+30"]

{[%evp 10,74,16,20,52,45,41,35,38,0,10,0,15,8,38,-41,-43,-43,-45,-42,-27,-111,-74,-98,-104,-93,-95,-93,-75,-91,-82,-78,-49,-137,32767,32767,32767,32767,32767,32767,32767,32767,32767,32767,32767,32767,-553,-529,-403,-416,-276,-300,-239,-278,-297,32767,32767,32767,32767,32767,32767,0,0,0,-12,0,0]} 1. e4 c5 2. Ne2 d6 3. g3 Nf6 4. Bg2 Nc6 5. O-O e6 6. d4 cxd4 7. Nxd4 Qc7 8. Nc3 a6 9. Kh1 Be7 10. f4 O-O 11. Be3 Bd7 {LiveBook: 31 Games} 12. Nxc6 {B80: Sicilian Scheveningen: 6 g3 and 6 Be3, including English Attack} (12. Nb3 $14 b5 13. g4 b4 14. Na4 d5 15. Nb6 Rad8 16. exd5 Nxd5 17. Nxd5 exd5 18. Qf3 Na5 19. Nxa5 Qxa5 {½-½ (31) Guseinov,G (2609)-Mchedlishvili,M (2656) Tbilisi 2012}) 12... Bxc6 13. Qe2 $146 ({Predecessor:} 13. g4 Rfe8 14. g5 Nd7 15. Rf3 b5 16. Rh3 b4 17. Qh5 Nf8 18. Ne2 Qb7 19. Ng3 g6 {½-½ (48) Rabatin,J (2281)-Oberhofer,C (2091) Pardubice 2016}) 13... b5 14. a3 Qb7 15. e5 (15. Bd4 $11) 15... Ng4 16. Rg1 Nxe3 17. Qxe3 dxe5 18. fxe5 Rac8 19. Ne4 Bd5 20. c3 Qc7 21. Rge1 ({White should play} 21. Qf4 $15) 21... Qxe5 22. Rad1 Qc7 23. Rd2 Rfd8 24. Rde2 Bc4 25. Rf2 f5 26. Qf3 fxe4 27. Qf7+ Kh8 28. Bxe4 Bd5 29. Bxd5 Rxd5 30. Qxe6 Rd7 31. Rf7 Qb7+ 32. Re4 Re8 33. Qe5 Rd1+ 34. Kg2 Rd2+ 35. Kh3 Qd7+ 36. Rg4 {[#]} Rxh2+ $1 37. Kxh2 Qxg4 $11 38. Qxe7 Qe2+ 39. Qxe2 Rxe2+ 40. Kh3 Kg8 41. Ra7 Rxb2 42. Rxa6 Rb3 43. a4 bxa4 44. Rxa4 Rxc3 45. Ra7 h6 46. Rb7 Kh7 47. Rb6 1/2-1/2

[Event "Leiden Chess Tournament"]
[Site "Leiden"]
[Date "2017.07.16"]
[Round "3"]
[White "Koes, Richard"]
[Black "Le Clercq, Maxim"]
[Result "1/2-1/2"]
[ECO "B00"]
[WhiteElo "1818"]
[BlackElo "1906"]
[Annotator "NA"]
[PlyCount "107"]
[EventDate "2017.??.??"]
[EventCountry "NED"]
[SourceTitle "playchess.com"]
[Source "ChessBase"]
[SourceQuality "1"]
[TimeControl "40/5400+30:1800+30"]

{[%evp 8,87,41,45,45,39,37,32,60,29,86,64,66,-12,-35,-45,-26,-40,36,19,42,28,51,38,41,36,41,-12,49,-47,-16,-57,-22,-66,32767,32767,32767,32767,32767,-85,-97,-183,32767,-360,-256,-455,32767,32767,32767,32767,32767,32767,32767,0,0,-64,-87,0,32767,32767,32767,-216,-208,-500,32767,32767,32767,32767,32767,32767,32767,32767,32767,-272,-308,32767,-305,-518,-98,-101,-97,-87]} 1. e4 Nc6 2. d4 d5 3. e5 f6 4. f4 {B00: Queen's Fianchetto Defence, Nimzowitsch Defence} Nh6 {LiveBook: 7 Games} (4... Bf5 5. Nf3 Qd7 6. c3 Nh6 7. Be3 e6 8. Nbd2 Be7 9. Be2 O-O 10. h3 fxe5 11. fxe5 Bg6 12. O-O Nf5 {1-0 (41) Bocharov,D (2560)-Schneider,I (2481) Berlin 2015}) 5. Nf3 Bf5 6. Bd3 e6 7. c3 Be4 8. Qe2 f5 9. Ng5 Qd7 10. Nxe4 $146 (10. O-O $14) ({Predecessor:} 10. Nd2 O-O-O 11. a4 Bxd3 12. Qxd3 Ng8 {1-0 (32) Cespedes,C (2094)-Montoya Perez,J (1928) Cartagena 2016}) 10... fxe4 11. Bb5 a6 12. Ba4 b5 ({Better is} 12... Nf5 $15) 13. Bc2 Be7 14. Qh5+ Kd8 15. a4 b4 16. a5 Na7 17. O-O (17. Ba4 $5 {[%cal Ra4d7]} c6 18. g4 $11) 17... Nb5 (17... Nf5 $11) 18. Ba4 (18. g4 $1 $14) 18... Nf5 19. Qe2 c5 20. Be3 ({Better is} 20. dxc5 $11 Bxc5+ 21. Kh1) 20... Qa7 21. Kh1 cxd4 22. Bxd4 Nbxd4 23. cxd4 Qxd4 24. Rc1 (24. Nd2 $17) 24... e3 25. b3 (25. Qc2 {was necessary.} Qa7 26. g4) 25... Bc5 ({Not} 25... Qxa1 26. Qc2 $16) 26. Ra2 Ke7 27. Bc6 Ra7 28. Rac2 Qxf4 29. Rxc5 Qxe5 30. Nd2 $1 Qb2 31. R5c2 (31. R1c2 $1 $11 Nd4 32. Qxe3 Nxc2 {[#]} 33. Rxc2 $1 {[%mdl 512]} Qxc2 34. Qxa7+ Kf6 35. Qf2+ Ke7 36. Qa7+ Kf6 37. Qf2+ Ke7 38. Qa7+) 31... exd2 32. Qxd2 Qd4 33. Qg5+ Qf6 34. Qg4 (34. Qd2 $17 {only move.}) 34... Nd4 {[#]} 35. Rd2 $2 (35. Rf2 $3 {[%mdl 512] only move.} Qxf2 36. Qxg7+ Kd6 37. Qxa7) 35... Nxc6 36. h3 h5 37. Qe2 Ne5 38. Qe3 Rd7 39. Qc5+ Ke8 40. Qc8+ Qd8 41. Qxa6 Ke7 42. Re2 $2 (42. Re1 Rd6 43. Qe2) 42... Qa8 $2 (42... Qb8 $19 {has better winning chances.} 43. Ree1 Rf8) 43. Qb6 Qb8 44. Qe3 $17 Ng4 45. Qxe6+ Kd8 46. g3 Qd6 47. hxg4 hxg4+ 48. Kg2 Qxe6 49. Rxe6 Re8 50. Rxe8+ Kxe8 51. Rc8+ Ke7 52. Rb8 Ra7 53. Rxb4 Rxa5 54. Rxg4 1/2-1/2

[Event "Leiden Chess Tournament"]
[Site "Leiden"]
[Date "2017.07.17"]
[Round "4"]
[White "Van Deutekom, Yde"]
[Black "Hilarius, Sander"]
[Result "1-0"]
[ECO "D17"]
[WhiteElo "1858"]
[BlackElo "1941"]
[Annotator "NA RC"]
[PlyCount "71"]
[EventDate "2017.??.??"]
[EventCountry "NED"]
[SourceTitle "playchess.com"]
[Source "ChessBase"]
[SourceQuality "1"]
[TimeControl "40/5400+30:1800+30"]

1. d4 d5 2. c4 c6 3. Nf3 Nf6 4. Nc3 dxc4 5. a4 Bf5 6. Ne5 Nbd7 7. Nxc4 Qc7 8. g3 e5 9. dxe5 Nxe5 10. Bf4 Nfd7 11. Nxe5 Nxe5 12. Qb3 $146 {D17: Slav Defence: 5 a4 Bf5: Lines with 6 Nh4 and 6 Ne5} ({Predecessor:} 12. Qd4 f6 13. Bg2 Qa5 14. Bxe5 fxe5 15. Qe3 Qc5 16. Qg5 Bg6 17. Be4 Bxe4 18. Nxe4 Qb4+ 19. Nc3 Qe7 {½-½ (48) Genov,P (2498)-Ponomariov,R (2710) Bilbao 2004}) 12... Bd6 13. Bg2 O-O (13... Qe7 $5 {[%cal Re5d3]}) 14. O-O Be6 15. Qc2 Nc4 16. Bxd6 Qxd6 17. a5 (17. Ne4 $5 {[%cal Re4d6]} Qe7 18. b3 $11) 17... a6 18. Ne4 Qe5 19. b4 Rfd8 20. Rfd1 Bd5 21. Nc5 Bxg2 (21... Qe7 $16) 22. Kxg2 Nd6 {[#]} 23. Ra3 $1 Re8 24. Re3 $18 Qf6 25. Rxe8+ Rxe8 26. Qd3 Nb5 27. Qd7 Qe5 28. Rd3 Rf8 29. Re3 Qb2 30. Nd3 Qa2 31. Qxb7 Nd4 32. Qxa6 Nxe2 33. Qxc6 h5 34. Qe4 Nc3 35. Qe5 h4 36. Qxc3 1-0

[Event "Leiden Chess Tournament"]
[Site "Leiden"]
[Date "2017.07.17"]
[Round "4"]
[White "Coiffait, Casimir"]
[Black "Van Ginkel, Henk"]
[Result "1-0"]
[ECO "B07"]
[WhiteElo "1853"]
[BlackElo "1846"]
[Annotator "NA RC"]
[PlyCount "35"]
[EventDate "2017.??.??"]
[EventCountry "NED"]
[SourceTitle "playchess.com"]
[Source "ChessBase"]
[SourceQuality "1"]
[TimeControl "40/5400+30:1800+30"]

1. e4 d6 2. d4 Nf6 3. Nc3 g6 4. f3 c6 5. Be3 b5 6. Qd2 Nbd7 7. O-O-O Qa5 8. Kb1 Bb7 9. g4 Nb6 10. Nd5 Qxd2 11. Nxf6+ exf6 12. Bxd2 O-O-O $14 13. Nh3 Nc4 14. Bxc4 bxc4 15. Ba5 Rd7 16. Rhe1 d5 17. exd5 cxd5 18. Re8+ 1-0

[Event "Leiden Chess Tournament"]
[Site "Leiden"]
[Date "2017.07.18"]
[Round "5"]
[White "Koelmans, Jan Willem"]
[Black "Van Deutekom, Yde"]
[Result "1/2-1/2"]
[ECO "A52"]
[WhiteElo "1916"]
[BlackElo "1858"]
[Annotator "NA"]
[PlyCount "41"]
[EventDate "2017.??.??"]
[EventCountry "NED"]
[SourceTitle "playchess.com"]
[Source "ChessBase"]
[SourceQuality "1"]
[TimeControl "40/5400+30:1800+30"]

1. d4 {[%emt 0:00:00]} Nf6 {[%emt 0:00:05]} 2. c4 {[%emt 0:00:00]} e5 {[%emt 0:00:11]} 3. dxe5 {[%emt 0:00:00]} Ng4 {[%emt 0:00:08]} 4. Nf3 {[%emt 0:00:11]} Bc5 {[%emt 0:00:22]} 5. e3 {[%emt 0:00:11]} Nc6 {[%emt 0:00:28]} 6. Be2 {[%emt 0:00:28]} Ngxe5 {[%emt 0:01:29]} 7. O-O {[%emt 0:00:36]} O-O {[%emt 0:00:22]} 8. Nc3 {[%emt 0:01:11]} a6 {[%emt 0:07:10]} 9. a3 {[%emt 0:04:50]} h6 {[%emt 0:07:47]} 10. b4 {[%emt 0:00:46]} Be7 {[%emt 0:02:46]} 11. Nxe5 {[%emt 0:10:52]} Nxe5 {[%emt 0:00:22]} 12. Nd5 {[%emt 0:00:10]} Bf6 {[%emt 0:01:49]} 13. Nxf6+ {[%emt 0:01:48]} Qxf6 {[%emt 0:00:34]} 14. Qd4 {[%emt 0:01:49]} Qe7 {[%emt 0:05:18]} 15. Bb2 {[%emt 0:01:28]} f6 {[%emt 0:00:05]} 16. c5 {[%emt 0:00:39]} d6 {[%emt 0:05:42]} 17. cxd6 {[%emt 0:00:24]} Qxd6 {[%emt 0:00:03]} 18. Qxd6 {[%emt 0:00:45]} cxd6 {[%emt 0:00:02]} 19. Rfd1 {[%emt 0:00:55]} Be6 {[%emt 0:02:36]} 20. Rxd6 {[%emt 0:06:17]} Bc4 {[%emt 0:01:08]} 21. Bxe5 {[%emt 0:01:30]} 1/2-1/2

[Event "Leiden Chess Tournament"]
[Site "Leiden"]
[Date "2017.07.18"]
[Round "5"]
[White "Coiffait, Casimir"]
[Black "Holwijn, Melvin"]
[Result "0-1"]
[ECO "C55"]
[WhiteElo "1853"]
[BlackElo "1932"]
[Annotator "NA RC"]
[PlyCount "99"]
[EventDate "2017.??.??"]
[EventCountry "NED"]
[SourceTitle "playchess.com"]
[Source "ChessBase"]
[SourceQuality "1"]
[TimeControl "40/5400+30:1800+30"]

1. e4 {[%emt 0:00:00]} e5 {[%emt 0:00:16]} 2. Bc4 {[%emt 0:00:00]} Nf6 {[%emt 0:00:20]} 3. d3 {[%emt 0:00:00]} Nc6 {[%emt 0:00:27]} 4. Nf3 {[%emt 0:00:00]} Be7 {[%emt 0:00:31]} 5. c3 {[%emt 0:00:19]} O-O {[%emt 0:00:36]} 6. O-O {[%emt 0:00:08]} d6 {[%emt 0:00:24]} 7. Bb3 {[%emt 0:00:12]} Nh5 {[%emt 0:03:07] C55: Two Knights: 4 d3, 4 d4 exd4 5 e5 and Max Lange Attack} (7... Na5 8. Bc2 c5 9. h3 Nc6 10. Re1 Qc7 11. Nbd2 Be6 12. Nf1 Nd7 13. Ng5 Bxg5 14. Bxg5 d5 15. exd5 Bxd5 16. Ne3 Be6 17. Qh5 Rfe8 18. b4 Nf8 19. bxc5 Qa5 20. d4 exd4 21. cxd4 Nxd4 22. Bf4 Nxc2 23. Nxc2 Qa4 {0-1 (23) Bortnyk,O (2588)-Wang,H (2712) Abu Dhabi 2016}) 8. d4 {[%emt 0:16:16]} Nf6 {[%emt 0:07:11]} 9. Bc2 {[%emt 0:02:22]} Bg4 $146 {[%emt 0:01:43]} ({Predecessor:} 9... d5 10. h3 b6 11. Re1 Bb7 12. Nbd2 Re8 13. Nf1 Bd6 14. Ng3 Ne7 15. Nxe5 Nc6 16. f4 {1-0 (30) Lagno,K (2355)-Dincok,B Antalya 2002}) 10. Be3 {[%emt 0:08:16]} exd4 {[%emt 0:01:16]} 11. cxd4 {[%emt 0:00:23]} Nb4 {[%emt 0:03:00]} 12. Nbd2 {[%emt 0:00:23]} Nxc2 {[%emt 0:01:55]} 13. Qxc2 {[%emt 0:00:02]} d5 {[%emt 0:00:25]} 14. Ne5 {[%emt 0:05:52]} Be2 {[%emt 0:05:02]} 15. Rfe1 {[%emt 0:00:41]} Ba6 {[%emt 0:00:26]} 16. Bg5 {[%emt 0:11:48]} Re8 {[%emt 0:09:26]} 17. exd5 {[%emt 0:11:02]} Nxd5 {[%emt 0:00:45]} 18. Bxe7 {[%emt 0:00:52]} Rxe7 {[%emt 0:00:31]} 19. Ndf3 {[%emt 0:01:28]} Nb4 {[%emt 0:12:16]} 20. Qb3 {[%emt 0:05:03]} Nd5 {[%emt 0:01:13]} 21. Qc2 {[%emt 0:04:53]} Qd6 {[%emt 0:03:59]} 22. Ng5 {[%emt 0:04:38]} Nf6 {[%emt 0:06:27]} (22... g6 $1 $11) 23. Rad1 {[%emt 0:05:38]} (23. Ng4 $1 $16 {[%cal Rg4f6]} g6 24. Rxe7 Qxe7 25. Nh6+ Kg7 26. Nhxf7) 23... Qd5 {[%emt 0:02:57]} 24. Nef3 {[%emt 0:13:19]} Rae8 {[%emt 0:01:35]} 25. Re5 {[%emt 0:01:00]} Qxa2 {[%emt 0:02:33]} 26. Rde1 {[%emt 0:01:03]} Rxe5 {[%emt 0:02:01]} 27. dxe5 {[%emt 0:00:11]} h6 {[%emt 0:02:16]} 28. exf6 {[%emt 0:05:22]} Rxe1+ {[%emt 0:00:07]} 29. Nxe1 {[%emt 0:00:04]} hxg5 {[%emt 0:00:07]} 30. fxg7 {[%emt 0:00:39]} Qc4 {[%emt 0:00:35]} ({Reject} 30... Kxg7 $6 31. Qf5 $11) 31. Qxc4 {[%emt 0:00:42]} Bxc4 {[%emt 0:00:06]} 32. Nf3 {[%emt 0:00:35]} f6 {[%emt 0:00:08]} ({And not} 32... Kxg7 33. Nxg5 a5 34. f3 $11) 33. Nd2 {[%emt 0:00:03]} Bd3 {[%emt 0:00:51]} 34. Nb3 {[%emt 0:00:32]} Bc4 {[%emt 0:02:17]} 35. Nd2 {[%emt 0:01:15]} Bd5 {[%emt 0:00:22]} 36. f3 {[%emt 0:00:51]} (36. b4 {was necessary.}) 36... Kxg7 {[%emt 0:00:14]} 37. Kf2 {[%emt 0:00:14]} f5 {[%emt 0:01:02]} 38. Ke3 {[%emt 0:01:16]} (38. b4 {might work better.}) 38... c5 {[%emt 0:00:37]} 39. f4 {[%emt 0:00:35]} Kg6 {[%emt 0:01:39]} ({Weaker is} 39... Bxg2 40. fxg5 Kg6 41. h4 $17) 40. g3 {[%emt 0:01:13]} b5 {[%emt 0:31:38]} 41. h3 {[%emt 0:08:29]} a5 {[%emt 0:00:00]} 42. g4 {[%emt 0:00:26]} gxf4+ {[%emt 0:00:00]} 43. Kxf4 {[%emt 0:00:09]} fxg4 $19 {[%emt 0:00:00]} 44. hxg4 {[%emt 0:00:05]} a4 {[%emt 0:00:00]} 45. Ke5 {[%emt 0:00:52]} Bf7 {[%emt 0:00:00]} 46. Kd6 {[%emt 0:00:30]} b4 {[%emt 0:00:00]} 47. Nb1 {[%emt 0:01:26]} c4 {[%emt 0:00:00]} 48. Kc5 {[%emt 0:00:21]} c3 {[%emt 0:00:00]} 49. bxc3 {[%emt 0:00:44]} a3 {[%emt 0:00:00]} 50. Kd4 0-1